fUSD/lending_fUSD_20260610
["ID","MTS","AMOUNT","RATE_DAILY","PERIOD"]
[424652104,1781034641000,-500.0,0.00014899,2]
[424652107,1781034641000,-500.0,0.00014899,2]
[424652110,1781034641000,-500.0,0.00014899,2]
[424652106,1781034641000,-500.0,0.00014899,2]
[424652108,1781034641000,-500.0,0.00014899,2]
[424652109,1781034641000,-500.0,0.00014899,2]
[424652111,1781034641000,-500.0,0.00014899,2]
[424652114,1781034641000,-500.0,0.00014899,2]
[424652084,1781034641000,-200.0,0.0001488,2]
[424652116,1781034641000,-500.0,0.00014899,2]
[424652102,1781034641000,-500.0,0.00014899,2]
[424652085,1781034641000,-200.0,0.0001488,2]
[424652081,1781034641000,-11282.0,0.0001488,5]
[424652092,1781034641000,-500.0,0.00014898,2]
[424652112,1781034641000,-500.0,0.00014899,2]
[424652062,1781034641000,-186.2,0.000148,2]
[424652063,1781034641000,-1612.43193392,0.000148,2]
[424652061,1781034641000,-186.2,0.000148,2]
[424652070,1781034641000,-500.0,0.00014849,2]
[424652071,1781034641000,-237316.51759758,0.0001485,2]
[424652065,1781034641000,-59638.69495873,0.000148,2]
[424652068,1781034641000,-162.06744247,0.00014845,2]
[424652066,1781034641000,-21127.14533533,0.000148,2]
[424652064,1781034641000,-1352.16180802,0.000148,2]
[424652067,1781034641000,-313.260143,0.00014826,2]
[424652069,1781034641000,-500.0,0.00014849,2]
[424652072,1781034641000,-1352.16180802,0.0001485,2]
[424652073,1781034641000,-2000.0,0.0001485,2]
[424652074,1781034641000,-2000.0,0.0001485,2]
[424652075,1781034641000,-2000.0,0.0001485,2]
[424652082,1781034641000,-163.0,0.0001488,2]
[424652077,1781034641000,-2000.0,0.0001485,2]
[424652078,1781034641000,-2000.0,0.0001485,2]
[424652076,1781034641000,-2000.0,0.0001485,2]
[424652080,1781034641000,-200.0,0.0001488,2]
[424652079,1781034641000,-200.0,0.00014879,2]
[424652083,1781034641000,-166.0,0.0001488,2]
[424652086,1781034641000,-200.0,0.0001488,2]
[424652088,1781034641000,-500.0,0.00014897,2]
[424652094,1781034641000,-500.0,0.00014899,2]
[424652113,1781034641000,-500.0,0.00014899,2]
[424652115,1781034641000,-500.0,0.00014899,2]
[424652119,1781034641000,-500.0,0.00014899,2]
[424652151,1781034641000,-500.0,0.00014899,2]
[424652147,1781034641000,-500.0,0.00014899,2]
[424652146,1781034641000,-500.0,0.00014899,2]
[424652145,1781034641000,-500.0,0.00014899,2]
[424652153,1781034641000,-500.0,0.00014899,2]
[424652154,1781034641000,-500.0,0.00014899,2]
[424652155,1781034641000,-500.0,0.00014899,2]
[424652159,1781034641000,-500.0,0.00014899,2]
[424652163,1781034641000,-500.0,0.00014899,2]
[424652162,1781034641000,-500.0,0.00014899,2]
[424652156,1781034641000,-500.0,0.00014899,2]
[424652157,1781034641000,-500.0,0.00014899,2]
[424652161,1781034641000,-500.0,0.00014899,2]
[424652160,1781034641000,-500.0,0.00014899,2]
[424652164,1781034641000,-500.0,0.00014899,2]
[424652166,1781034641000,-500.0,0.00014899,2]
[424652165,1781034641000,-500.0,0.00014899,2]
[424652172,1781034641000,-25000.0,0.000149,3]
[424652173,1781034641000,-1352.16180802,0.000149,2]
[424652169,1781034641000,-250.0,0.000149,2]
[424652174,1781034641000,-12942.65,0.000149,2]
[424652167,1781034641000,-500.0,0.00014899,2]
[424652168,1781034641000,-11203.0,0.000149,5]
[424652171,1781034641000,-33271.7254,0.000149,2]
[424652170,1781034641000,-2000.0,0.000149,2]
[424652149,1781034641000,-500.0,0.00014899,2]
[424652150,1781034641000,-500.0,0.00014899,2]
[424652158,1781034641000,-500.0,0.00014899,2]
[424652143,1781034641000,-500.0,0.00014899,2]
[424652148,1781034641000,-500.0,0.00014899,2]
[424652118,1781034641000,-150.0,0.00014899,2]
[424652127,1781034641000,-500.0,0.00014899,2]
[424652121,1781034641000,-500.0,0.00014899,2]
[424652120,1781034641000,-500.0,0.00014899,2]
[424652123,1781034641000,-500.0,0.00014899,2]
[424652122,1781034641000,-500.0,0.00014899,2]
[424652125,1781034641000,-500.0,0.00014899,2]
[424652124,1781034641000,-500.0,0.00014899,2]
[424652128,1781034641000,-500.0,0.00014899,2]
[424652129,1781034641000,-500.0,0.00014899,2]
[424652133,1781034641000,-500.0,0.00014899,2]
[424652140,1781034641000,-500.0,0.00014899,2]
[424652126,1781034641000,-500.0,0.00014899,2]
[424652141,1781034641000,-500.0,0.00014899,2]
[424652152,1781034641000,-500.0,0.00014899,2]
[424652131,1781034641000,-500.0,0.00014899,2]
[424652144,1781034641000,-500.0,0.00014899,2]
[424652142,1781034641000,-500.0,0.00014899,2]
[424652135,1781034641000,-500.0,0.00014899,2]
[424652134,1781034641000,-500.0,0.00014899,2]
[424652139,1781034641000,-500.0,0.00014899,2]
[424652136,1781034641000,-500.0,0.00014899,2]
[424652137,1781034641000,-500.0,0.00014899,2]
[424652132,1781034641000,-500.0,0.00014899,2]
[424652130,1781034641000,-500.0,0.00014899,2]
[424652138,1781034641000,-500.0,0.00014899,2]
[424652221,1781034642000,-207.0,0.00015068,2]
[424652215,1781034642000,-347.66113975,0.00015001,10]
[424652224,1781034642000,-524.095183,0.00015068,2]
[424652212,1781034642000,-151.0,0.00015,2]
[424652222,1781034642000,-488.41,0.00015068,2]
[424652204,1781034642000,-2000.0,0.00015,2]
[424652206,1781034642000,-2000.0,0.00015,2]
[424652210,1781034642000,-500.0,0.00015,2]
[424652203,1781034642000,-2000.0,0.00015,2]
[424652207,1781034642000,-1046.56,0.00015,2]
[424652216,1781034642000,-214.06473713,0.00015002,10]
[424652213,1781034642000,-151.0,0.00015,2]
[424652219,1781034642000,-574.61032294,0.00015002,2]
[424652226,1781034642000,-524.095183,0.00015068,2]
[424652214,1781034642000,-151.0,0.00015,2]
[424652220,1781034642000,-350.0,0.00015014,3]
[424652217,1781034642000,-214.06473713,0.00015002,10]
[424652218,1781034642000,-214.06473713,0.00015002,10]
[424652225,1781034642000,-524.095183,0.00015068,2]
[424652227,1781034642000,-500.0,0.00015079,2]
[424652236,1781034642000,-2000.0,0.00015224,2]
[424652229,1781034642000,-1734.62772924,0.0001509,2]
[424652230,1781034642000,-350.0,0.00015161,3]
[424652235,1781034642000,-2000.0,0.00015224,2]
[424652231,1781034642000,-308.4189,0.00015167,2]
[424652232,1781034642000,-350.0,0.00015206,2]
[424652211,1781034642000,-502.765,0.00015,2]
[424652223,1781034642000,-524.095183,0.00015068,2]
[424652208,1781034642000,-1827.94,0.00015,2]
[424652175,1781034642000,-12942.65,0.000149,2]
[424652205,1781034642000,-1311.74,0.00015,2]
[424652176,1781034642000,-12942.65,0.000149,2]
[424652234,1781034642000,-2000.0,0.00015224,2]
[424652177,1781034642000,-12942.65,0.000149,2]
[424652184,1781034642000,-151.0,0.00014986,2]
[424652186,1781034642000,-202.700081,0.00014997,2]
[424652187,1781034642000,-2000.0,0.00014997,2]
[424652185,1781034642000,-2588.46180702,0.0001499,2]
[424652179,1781034642000,-162.06744247,0.00014922,2]
[424652180,1781034642000,-350.0,0.00014942,3]
[424652182,1781034642000,-172.17979501,0.00014969,2]
[424652183,1781034642000,-151.0,0.00014986,2]
[424652181,1781034642000,-152.0,0.00014969,2]
[424652189,1781034642000,-151.0,0.00015,2]
[424652188,1781034642000,-2287031.25568931,0.00015,2]
[424652199,1781034642000,-764.55886233,0.00015,2]
[424652194,1781034642000,-362383.0438873,0.00015,2]
[424652190,1781034642000,-454.0,0.00015,2]
[424652191,1781034642000,-451.0,0.00015,2]
[424652193,1781034642000,-6490.4456403,0.00015,2]
[424652198,1781034642000,-1000.0,0.00015,2]
[424652195,1781034642000,-4930.3524381,0.00015,2]
[424652196,1781034642000,-475766.150571,0.00015,2]
[424652192,1781034642000,-117530.953218,0.00015,2]
[424652197,1781034642000,-2915.585493,0.00015,2]
[424652200,1781034642000,-220278.0683608,0.00015,2]
[424652202,1781034642000,-2000.0,0.00015,2]
[424652201,1781034642000,-2604.7486874,0.00015,2]
[424652209,1781034642000,-850.87,0.00015,2]
[424652228,1781034642000,-1191.11104074,0.0001509,2]
[424652178,1781034642000,-12942.66,0.000149,2]
[424652238,1781034642000,-2000.0,0.00015224,2]
[424652266,1781034642000,-1000.0,0.00015224,2]
[424652271,1781034642000,-1000.0,0.00015224,2]
[424652269,1781034642000,-1000.0,0.00015224,2]
[424652272,1781034642000,-1000.0,0.00015224,2]
[424652270,1781034642000,-1000.0,0.00015224,2]
[424652275,1781034642000,-2000.0,0.00015224,2]
[424652277,1781034642000,-2000.0,0.00015224,2]
[424652276,1781034642000,-1000.0,0.00015224,2]
[424652279,1781034642000,-2000.0,0.00015224,2]
[424652282,1781034642000,-1000.0,0.00015224,2]
[424652283,1781034642000,-1000.0,0.00015224,2]
[424652280,1781034642000,-1000.0,0.00015224,2]
[424652278,1781034642000,-1000.0,0.00015224,2]
[424652267,1781034642000,-1000.0,0.00015224,2]
[424652284,1781034642000,-2000.0,0.00015224,2]
[424652287,1781034642000,-1000.0,0.00015224,2]
[424652286,1781034642000,-2000.0,0.00015224,2]
[424652285,1781034642000,-1000.0,0.00015224,2]
[424652289,1781034642000,-1000.0,0.00015224,2]
[424652292,1781034642000,-2000.0,0.00015224,2]
[424652294,1781034642000,-2000.0,0.00015224,2]
[424652290,1781034642000,-2000.0,0.00015224,2]
[424652291,1781034642000,-1000.0,0.00015224,2]
[424652293,1781034642000,-1000.0,0.00015224,2]
[424652295,1781034642000,-1000.0,0.00015224,2]
[424652297,1781034642000,-1000.0,0.00015224,2]
[424652296,1781034642000,-2000.0,0.00015224,2]
[424652233,1781034642000,-2000.0,0.00015224,2]
[424652281,1781034642000,-2000.0,0.00015224,2]
[424652265,1781034642000,-1000.0,0.00015224,2]
[424652288,1781034642000,-2000.0,0.00015224,2]
[424652264,1781034642000,-1051.96,0.00015224,2]
[424652262,1781034642000,-2000.0,0.00015224,2]
[424652249,1781034642000,-2000.0,0.00015224,2]
[424652237,1781034642000,-2000.0,0.00015224,2]
[424652239,1781034642000,-2000.0,0.00015224,2]
[424652246,1781034642000,-2000.0,0.00015224,2]
[424652241,1781034642000,-2000.0,0.00015224,2]
[424652243,1781034642000,-2000.0,0.00015224,2]
[424652240,1781034642000,-2000.0,0.00015224,2]
[424652242,1781034642000,-2000.0,0.00015224,2]
[424652244,1781034642000,-2000.0,0.00015224,2]
[424652245,1781034642000,-2000.0,0.00015224,2]
[424652247,1781034642000,-2000.0,0.00015224,2]
[424652252,1781034642000,-2000.0,0.00015224,2]
[424652250,1781034642000,-2000.0,0.00015224,2]
[424652248,1781034642000,-2000.0,0.00015224,2]
[424652251,1781034642000,-207.86,0.00015224,2]
[424652274,1781034642000,-1000.0,0.00015224,2]
[424652268,1781034642000,-1000.0,0.00015224,2]
[424652273,1781034642000,-2000.0,0.00015224,2]
[424652263,1781034642000,-2000.0,0.00015224,2]
[424652253,1781034642000,-2000.0,0.00015224,2]
[424652259,1781034642000,-1086.6,0.00015224,2]
[424652256,1781034642000,-2000.0,0.00015224,2]
[424652258,1781034642000,-2000.0,0.00015224,2]
[424652260,1781034642000,-2000.0,0.00015224,2]
[424652254,1781034642000,-2000.0,0.00015224,2]
[424652257,1781034642000,-2000.0,0.00015224,2]
[424652261,1781034642000,-2000.0,0.00015224,2]
[424652255,1781034642000,-2000.0,0.00015224,2]
[424652349,1781034643000,-1000.0,0.00015224,2]
[424652342,1781034643000,-2000.0,0.00015224,2]
[424652345,1781034643000,-1000.0,0.00015224,2]
[424652343,1781034643000,-1000.0,0.00015224,2]
[424652336,1781034643000,-2000.0,0.00015224,2]
[424652347,1781034643000,-1000.0,0.00015224,2]
[424652341,1781034643000,-1000.0,0.00015224,2]
[424652344,1781034643000,-2000.0,0.00015224,2]
[424652338,1781034643000,-2000.0,0.00015224,2]
[424652339,1781034643000,-1000.0,0.00015224,2]
[424652346,1781034643000,-2000.0,0.00015224,2]
[424652359,1781034643000,-629.59,0.00015224,2]
[424652350,1781034643000,-310.39,0.00015224,2]
[424652352,1781034643000,-1000.0,0.00015224,2]
[424652355,1781034643000,-1000.0,0.00015224,2]
[424652356,1781034643000,-1000.0,0.00015224,2]
[424652357,1781034643000,-1000.0,0.00015224,2]
[424652351,1781034643000,-1000.0,0.00015224,2]
[424652353,1781034643000,-1000.0,0.00015224,2]
[424652354,1781034643000,-1000.0,0.00015224,2]
[424652358,1781034643000,-1000.0,0.00015224,2]
[424652361,1781034643000,-1000.0,0.00015224,2]
[424652360,1781034643000,-1000.0,0.00015224,2]
[424652340,1781034643000,-2000.0,0.00015224,2]
[424652362,1781034643000,-1000.0,0.00015224,2]
[424652348,1781034643000,-2000.0,0.00015224,2]
[424652337,1781034643000,-1000.0,0.00015224,2]
[424652312,1781034643000,-2000.0,0.00015224,2]
[424652325,1781034643000,-2000.0,0.00015224,2]
[424652370,1781034643000,-1000.0,0.00015224,2]
[424652299,1781034643000,-1000.0,0.00015224,2]
[424652298,1781034643000,-2000.0,0.00015224,2]
[424652304,1781034643000,-2000.0,0.00015224,2]
[424652302,1781034643000,-2000.0,0.00015224,2]
[424652301,1781034643000,-1000.0,0.00015224,2]
[424652303,1781034643000,-1000.0,0.00015224,2]
[424652305,1781034643000,-1000.0,0.00015224,2]
[424652306,1781034643000,-2000.0,0.00015224,2]
[424652310,1781034643000,-1000.0,0.00015224,2]
[424652308,1781034643000,-2000.0,0.00015224,2]
[424652314,1781034643000,-1000.0,0.00015224,2]
[424652335,1781034643000,-1000.0,0.00015224,2]
[424652309,1781034643000,-2000.0,0.00015224,2]
[424652316,1781034643000,-2000.0,0.00015224,2]
[424652328,1781034643000,-744.95,0.00015224,2]
[424652329,1781034643000,-1000.0,0.00015224,2]
[424652332,1781034643000,-2000.0,0.00015224,2]
[424652330,1781034643000,-2000.0,0.00015224,2]
[424652331,1781034643000,-1000.0,0.00015224,2]
[424652333,1781034643000,-1000.0,0.00015224,2]
[424652334,1781034643000,-2000.0,0.00015224,2]
[424652323,1781034643000,-1000.0,0.00015224,2]
[424652321,1781034643000,-2000.0,0.00015224,2]
[424652318,1781034643000,-1000.0,0.00015224,2]
[424652326,1781034643000,-1000.0,0.00015224,2]
[424652307,1781034643000,-2000.0,0.00015224,2]
[424652364,1781034643000,-1000.0,0.00015224,2]
[424652300,1781034643000,-2000.0,0.00015224,2]
[424652367,1781034643000,-1000.0,0.00015224,2]
[424652398,1781034643000,-1517.64,0.000153,2]
[424652397,1781034643000,-171.72,0.00015259,2]
[424652400,1781034643000,-350.0,0.00015601,2]
[424652403,1781034643000,-1798.80895522,0.00015638,2]
[424652402,1781034643000,-1235.18214925,0.00015638,2]
[424652404,1781034643000,-419.50355664,0.000158,5]
[424652405,1781034643000,-2275.878506,0.00015807,2]
[424652407,1781034643000,-214.06473713,0.00015824,10]
[424652409,1781034643000,-207.0,0.0001589,2]
[424652408,1781034643000,-350.0,0.00015847,2]
[424652414,1781034643000,-150.0,0.00016,2]
[424652411,1781034643000,-4686.55964528,0.000159,2]
[424652406,1781034643000,-347.66113975,0.00015823,10]
[424652415,1781034643000,-150.0,0.00016,2]
[424652410,1781034643000,-853.94608,0.000159,2]
[424652413,1781034643000,-300.0,0.00016,2]
[424652416,1781034643000,-278.26030635,0.00016,2]
[424652419,1781034643000,-215.89329178,0.00016,3]
[424652421,1781034643000,-201.33076395,0.000161,7]
[424652418,1781034643000,-4686.55964528,0.00016,2]
[424652420,1781034643000,-350.0,0.00016071,2]
[424652422,1781034643000,-4378.76695744,0.0001611,15]
[424652424,1781034643000,-199.64334801,0.00016119,2]
[424652423,1781034643000,-8281.88,0.00016116,2]
[424652425,1781034643000,-350.51427922,0.00016119,2]
[424652366,1781034643000,-1000.0,0.00015224,2]
[424652412,1781034643000,-779.39793254,0.00016,2]
[424652399,1781034643000,-350.0,0.00015549,3]
[424652417,1781034643000,-853.94608,0.00016,2]
[424652395,1781034643000,-407.4,0.00015224,2]
[424652401,1781034643000,-350.0,0.00015624,2]
[424652365,1781034643000,-1000.0,0.00015224,2]
[424652369,1781034643000,-1000.0,0.00015224,2]
[424652363,1781034643000,-1000.0,0.00015224,2]
[424652372,1781034643000,-1000.0,0.00015224,2]
[424652371,1781034643000,-1000.0,0.00015224,2]
[424652377,1781034643000,-1000.0,0.00015224,2]
[424652373,1781034643000,-1000.0,0.00015224,2]
[424652374,1781034643000,-1000.0,0.00015224,2]
[424652375,1781034643000,-1000.0,0.00015224,2]
[424652376,1781034643000,-1000.0,0.00015224,2]
[424652381,1781034643000,-1000.0,0.00015224,2]
[424652379,1781034643000,-1000.0,0.00015224,2]
[424652378,1781034643000,-1000.0,0.00015224,2]
[424652368,1781034643000,-1000.0,0.00015224,2]
[424652396,1781034643000,-170.487035,0.00015229,2]
[424652380,1781034643000,-678.99,0.00015224,2]
[424652392,1781034643000,-1000.0,0.00015224,2]
[424652393,1781034643000,-1000.0,0.00015224,2]
[424652391,1781034643000,-1000.0,0.00015224,2]
[424652388,1781034643000,-1000.0,0.00015224,2]
[424652394,1781034643000,-1000.0,0.00015224,2]
[424652390,1781034643000,-1000.0,0.00015224,2]
[424652386,1781034643000,-1000.0,0.00015224,2]
[424652385,1781034643000,-1000.0,0.00015224,2]
[424652383,1781034643000,-1000.0,0.00015224,2]
[424652382,1781034643000,-1000.0,0.00015224,2]
[424652389,1781034643000,-1000.0,0.00015224,2]
[424652462,1781034644000,-385.20939041,0.00017168,2]
[424652477,1781034644000,-794.38804377,0.000177,2]
[424652459,1781034644000,-4686.55964528,0.00017,2]
[424652463,1781034644000,-4686.55964528,0.000172,2]
[424652460,1781034644000,-1458.05602519,0.0001703,2]
[424652456,1781034644000,-169.72,0.0001694,2]
[424652455,1781034644000,-169.72,0.0001694,2]
[424652465,1781034644000,-1612.43193386,0.00017248,2]
[424652457,1781034644000,-500.0,0.0001699,2]
[424652464,1781034644000,-500.0,0.00017244,2]
[424652467,1781034644000,-2005.9555727,0.00017282,2]
[424652458,1781034644000,-1162.24423848,0.00017,2]
[424652478,1781034644000,-403.0,0.000177,5]
[424652470,1781034644000,-750.0,0.0001739,7]
[424652476,1781034644000,-16103.29,0.00017572,2]
[424652469,1781034644000,-1800.0,0.0001739,2]
[424652468,1781034644000,-4686.55964528,0.000173,2]
[424652475,1781034644000,-1864.76,0.00017572,2]
[424652472,1781034644000,-1255.79,0.00017572,2]
[424652474,1781034644000,-20508.29,0.00017572,2]
[424652471,1781034644000,-500.0,0.000175,2]
[424652473,1781034644000,-468.85,0.00017572,2]
[424652479,1781034644000,-152.0,0.00017727,2]
[424652480,1781034644000,-152.0,0.00017727,2]
[424652484,1781034644000,-152.0,0.00017727,2]
[424652487,1781034644000,-164.81794585,0.00017727,2]
[424652466,1781034644000,-1377.42282658,0.00017282,2]
[424652461,1781034644000,-947.38,0.00017094,2]
[424652429,1781034644000,-1865.36488656,0.00016186,2]
[424652451,1781034644000,-163.15,0.00016767,2]
[424652427,1781034644000,-206.093596,0.00016158,2]
[424652428,1781034644000,-1280.88388877,0.00016186,2]
[424652426,1781034644000,-306.78012951,0.00016119,2]
[424652430,1781034644000,-853.94608,0.000162,2]
[424652431,1781034644000,-4686.55964528,0.000162,2]
[424652432,1781034644000,-162.895274,0.00016238,2]
[424652441,1781034644000,-1000.0,0.000165,2]
[424652433,1781034644000,-853.94608,0.000163,2]
[424652434,1781034644000,-4686.55964528,0.000163,2]
[424652436,1781034644000,-200.0,0.0001634,2]
[424652435,1781034644000,-500.0,0.00016301,2]
[424652438,1781034644000,-350.0,0.0001636,3]
[424652454,1781034644000,-446.63,0.00016891,2]
[424652440,1781034644000,-488.41,0.00016438,2]
[424652439,1781034644000,-850.87,0.000164,2]
[424652443,1781034644000,-4686.55964528,0.000165,2]
[424652453,1781034644000,-152.0,0.00016804,2]
[424652442,1781034644000,-853.94608,0.000165,2]
[424652445,1781034644000,-4686.55964528,0.000167,2]
[424652446,1781034644000,-238.81297693,0.00016712,2]
[424652444,1781034644000,-249.0,0.00016667,2]
[424652447,1781034644000,-238.81297693,0.00016712,2]
[424652448,1781034644000,-168.37,0.00016712,2]
[424652449,1781034644000,-1328.27659266,0.00016734,2]
[424652450,1781034644000,-1934.38338736,0.00016734,2]
[424652452,1781034644000,-4686.55964528,0.000168,2]
[424652437,1781034644000,-151.0,0.00016348,2]
[424652481,1781034644000,-152.0,0.00017727,2]
[424652482,1781034644000,-152.0,0.00017727,2]
[424652486,1781034644000,-152.0,0.00017727,2]
[424652517,1781034644000,-151.0,0.0001783,2]
[424652522,1781034644000,-151.0,0.0001783,2]
[424652518,1781034644000,-693.39197629,0.0001783,2]
[424652525,1781034644000,-209.40437684,0.0001783,2]
[424652524,1781034644000,-151.0,0.0001783,2]
[424652521,1781034644000,-151.0,0.0001783,2]
[424652523,1781034644000,-209.40437684,0.0001783,2]
[424652520,1781034644000,-151.0,0.0001783,2]
[424652526,1781034644000,-151.0,0.0001783,2]
[424652536,1781034644000,-209.40437684,0.0001783,2]
[424652534,1781034644000,-152.0,0.0001783,2]
[424652529,1781034644000,-152.0,0.0001783,2]
[424652519,1781034644000,-721.12765534,0.0001783,2]
[424652533,1781034644000,-500.0,0.0001783,2]
[424652537,1781034644000,-151.0,0.0001783,2]
[424652528,1781034644000,-4853.74383408,0.0001783,2]
[424652532,1781034644000,-151.0,0.0001783,2]
[424652531,1781034644000,-151.0,0.0001783,2]
[424652527,1781034644000,-151.0,0.0001783,2]
[424652535,1781034644000,-151.0,0.0001783,2]
[424652541,1781034644000,-152.0,0.0001783,2]
[424652538,1781034644000,-151.0,0.0001783,2]
[424652540,1781034644000,-200.0,0.0001783,2]
[424652542,1781034644000,-151.0,0.0001783,2]
[424652483,1781034644000,-152.0,0.00017727,2]
[424652539,1781034644000,-500.0,0.0001783,2]
[424652530,1781034644000,-2080.17592889,0.0001783,2]
[424652515,1781034644000,-693.39197629,0.0001783,2]
[424652543,1781034644000,-151.0,0.0001783,2]
[424652509,1781034644000,-151.0,0.0001783,2]
[424652516,1781034644000,-151.0,0.0001783,2]
[424652490,1781034644000,-151.0,0.00017727,2]
[424652489,1781034644000,-151.0,0.00017727,2]
[424652488,1781034644000,-151.0,0.00017727,2]
[424652492,1781034644000,-151.0,0.00017727,2]
[424652502,1781034644000,-154.6875,0.0001783,2]
[424652493,1781034644000,-151.0,0.00017727,2]
[424652491,1781034644000,-151.0,0.00017727,2]
[424652494,1781034644000,-156.7527199,0.00017727,2]
[424652495,1781034644000,-152.0,0.00017742,2]
[424652501,1781034644000,-200.4393447,0.0001783,2]
[424652496,1781034644000,-152.0,0.00017742,2]
[424652499,1781034644000,-152.0,0.00017742,2]
[424652485,1781034644000,-152.0,0.00017727,2]
[424652498,1781034644000,-152.0,0.00017742,2]
[424652497,1781034644000,-152.0,0.00017742,2]
[424652510,1781034644000,-209.40437684,0.0001783,2]
[424652504,1781034644000,-151.0,0.0001783,2]
[424652507,1781034644000,-151.0,0.0001783,2]
[424652511,1781034644000,-9552.16786547,0.0001783,2]
[424652513,1781034644000,-151.0,0.0001783,2]
[424652512,1781034644000,-578.20924308,0.0001783,2]
[424652508,1781034644000,-1428.38747117,0.0001783,2]
[424652506,1781034644000,-174.61919141,0.0001783,2]
[424652505,1781034644000,-232.56974424,0.0001783,2]
[424652503,1781034644000,-200.0,0.0001783,2]
[424652500,1781034644000,-850.87,0.000178,2]
[424652514,1781034644000,-151.0,0.0001783,2]
[424652584,1781034645000,-151.0,0.0001783,2]
[424652581,1781034645000,-500.0,0.0001783,2]
[424652583,1781034645000,-151.0,0.0001783,2]
[424652580,1781034645000,-151.0,0.0001783,2]
[424652579,1781034645000,-151.0,0.0001783,2]
[424652573,1781034645000,-152.0,0.0001783,2]
[424652575,1781034645000,-151.0,0.0001783,2]
[424652582,1781034645000,-151.0,0.0001783,2]
[424652576,1781034645000,-151.0,0.0001783,2]
[424652577,1781034645000,-151.0,0.0001783,2]
[424652574,1781034645000,-500.0,0.0001783,2]
[424652591,1781034645000,-200.0,0.00017842,2]
[424652585,1781034645000,-151.0,0.0001783,2]
[424652587,1781034645000,-200.0,0.00017842,2]
[424652588,1781034645000,-200.0,0.00017842,2]
[424652589,1781034645000,-200.0,0.00017842,2]
[424652594,1781034645000,-255.0,0.00017842,2]
[424652595,1781034645000,-719.04747942,0.00017885,2]
[424652590,1781034645000,-200.0,0.00017842,2]
[424652592,1781034645000,-200.0,0.00017842,2]
[424652593,1781034645000,-200.0,0.00017842,2]
[424652596,1781034645000,-5033.33235594,0.00017885,2]
[424652600,1781034645000,-1320.75332669,0.0001794,2]
[424652578,1781034645000,-500.0,0.0001783,2]
[424652586,1781034645000,-151.0,0.0001783,2]
[424652562,1781034645000,-152.0,0.0001783,2]
[424652559,1781034645000,-151.0,0.0001783,2]
[424652569,1781034645000,-152.0,0.0001783,2]
[424652601,1781034645000,-151.0,0.0001794,2]
[424652545,1781034645000,-152.0,0.0001783,2]
[424652547,1781034645000,-151.0,0.0001783,2]
[424652544,1781034645000,-500.0,0.0001783,2]
[424652549,1781034645000,-152.0,0.0001783,2]
[424652546,1781034645000,-151.0,0.0001783,2]
[424652548,1781034645000,-500.0,0.0001783,2]
[424652553,1781034645000,-151.0,0.0001783,2]
[424652552,1781034645000,-500.0,0.0001783,2]
[424652554,1781034645000,-152.0,0.0001783,2]
[424652556,1781034645000,-500.0,0.0001783,2]
[424652551,1781034645000,-151.0,0.0001783,2]
[424652560,1781034645000,-151.0,0.0001783,2]
[424652558,1781034645000,-151.0,0.0001783,2]
[424652555,1781034645000,-151.0,0.0001783,2]